[Event "EWIBCC 2019"]
[Site "Monte-Carlo"]
[Date "2019.11.29"]
[Round "11.11"]
[White "Gaponenko, Inna"]
[Black "Dornbusch, Tatiana"]
[Result "1/2-1/2"]
[ECO "B02"]
[WhiteElo "2427"]
[BlackElo "2269"]
[Annotator "NA"]
[PlyCount "77"]
[EventDate "2019.11.29"]
[EventType "swiss"]
[EventCountry "MNC"]
[SourceTitle "playchess.com"]
[Source "ChessBase"]
[SourceQuality "1"]
[TimeControl "180+2"]

1. e4 {[%emt 0:00:00]} Nf6 {[%emt 0:00:00]} 2. e5 {[%emt 0:00:00]} Nd5 {[%emt 0:00:00]} 3. c4 {[%emt 0:00:01]} Nb6 {[%emt 0:00:02]} 4. c5 {[%emt 0:00:01]} Nd5 {[%emt 0:00:01]} 5. d4 {[%emt 0:00:01]} d6 {[%emt 0:00:04]} 6. cxd6 {[%emt 0:00:01]} exd6 {[%emt 0:00:05]} 7. Nf3 {[%emt 0:00:01]} dxe5 {[%emt 0:00:20]} 8. dxe5 {[%emt 0:00:12]} Bb4+ {[%emt 0:00:03]} 9. Bd2 {[%emt 0:00:02]} O-O {[%emt 0:00:14]} 10. Bc4 {[%emt 0:00:28]} Bxd2+ {[%emt 0:00:23]} 11. Nbxd2 {[%emt 0:00:07]} Nf4 {[%emt 0:00:24]} 12. O-O {[%emt 0:00:04]} Nc6 {[%emt 0:00:09]} 13. Qc2 {[%emt 0:00:15]} Be6 {[%emt 0:00:25]} 14. Qe4 {[%emt 0:01:03]} Bxc4 {[%emt 0:00:01]} 15. Nxc4 {[%emt 0:00:01]} Ne6 {[%emt 0:00:03]} 16. Rad1 {[%emt 0:00:04]} Qe7 {[%emt 0:00:01]} 17. a3 {[%emt 0:00:01]} a5 {[%emt 0:00:07]} 18. Qd5 {[%emt 0:00:14]} Rfd8 {[%emt 0:00:34]} 19. Qb5 {[%emt 0:00:02]} Qc5 {[%emt 0:00:00]} 20. Qxc5 {[%emt 0:00:11]} Nxc5 {[%emt 0:00:01]} 21. g3 {[%emt 0:00:08]} a4 {[%emt 0:00:03]} 22. Kg2 {[%emt 0:00:04]} b5 {[%emt 0:00:06]} 23. Ne3 {[%emt 0:00:03]} Nd3 {[%emt 0:00:02]} 24. Nf5 {[%emt 0:00:37]} Ncxe5 {[%emt 0:00:04]} 25. Nxe5 {[%emt 0:00:02]} Nxe5 {[%emt 0:00:01]} 26. Rc1 {[%emt 0:00:01]} Nc4 {[%emt 0:00:02]} 27. Rc2 {[%emt 0:00:02]} g6 {[%emt 0:00:04]} 28. Nh4 {[%emt 0:00:03]} Rd2 {[%emt 0:00:06]} 29. Rxd2 {[%emt 0:00:02]} Nxd2 {[%emt 0:00:01]} 30. Rc1 {[%emt 0:00:02]} Nc4 {[%emt 0:00:00]} 31. Rc2 {[%emt 0:00:01]} Rd8 {[%emt 0:00:02]} 32. Nf3 {[%emt 0:00:01]} c5 {[%emt 0:00:01]} 33. Kf1 {[%emt 0:00:02]} Kf8 {[%emt 0:00:06]} 34. Ke2 {[%emt 0:00:02]} h5 {[%emt 0:00:02]} 35. h4 {[%emt 0:00:02]} Re8+ {[%emt 0:00:02]} 36. Kd3 {[%emt 0:00:03]} Rd8+ {[%emt 0:00:02]} 37. Ke2 {[%emt 0:00:01]} Re8+ {[%emt 0:00:06]} 38. Kd3 {[%emt 0:00:01]} Rd8+ {[%emt 0:00:01]} 39. Ke4 {[%emt 0:00:12]} 1/2-1/2

[Event "EWIBCC 2019"]
[Site "Monte-Carlo"]
[Date "2019.11.29"]
[Round "11.12"]
[White "Babiy, Olga"]
[Black "Doluhanova, Evgeniya"]
[Result "1/2-1/2"]
[ECO "C54"]
[WhiteElo "2249"]
[BlackElo "2276"]
[Annotator "ChessBase"]
[PlyCount "118"]
[EventDate "2019.11.29"]
[EventType "swiss"]
[EventCountry "MNC"]
[SourceTitle "playchess.com"]
[Source "ChessBase"]
[SourceQuality "1"]
[TimeControl "180+2"]

1. e4 {[%emt 0:00:00]} e5 {[%emt 0:00:02]} 2. Nf3 {[%emt 0:00:00]} Nc6 {[%emt 0:00:01]} 3. Bc4 {[%emt 0:00:00]} Bc5 {[%emt 0:00:02]} 4. c3 {[%emt 0:00:01]} d6 {[%emt 0:00:07]} 5. b4 {[%emt 0:00:02]} Bb6 {[%emt 0:00:01]} 6. a4 {[%emt 0:00:01]} a5 {[%emt 0:00:06]} 7. b5 {[%emt 0:00:01]} Nce7 {[%emt 0:00:02]} 8. d3 {[%emt 0:00:05]} Nf6 {[%emt 0:00:16]} 9. h3 {[%emt 0:00:03]} Be6 {[%emt 0:00:26]} 10. Nbd2 {[%emt 0:00:02]} c6 {[%emt 0:00:16]} 11. O-O {[%emt 0:00:12]} O-O {[%emt 0:00:09]} 12. Re1 {[%emt 0:00:28]} d5 {[%emt 0:00:11]} 13. exd5 {[%emt 0:00:34]} cxd5 {[%emt 0:00:02]} 14. Ba2 {[%emt 0:00:01]} e4 {[%emt 0:00:08]} 15. dxe4 {[%emt 0:01:07]} dxe4 {[%emt 0:00:01]} 16. Bxe6 {[%emt 0:00:01]} exf3 {[%emt 0:00:10]} 17. Ba2 {[%emt 0:00:01]} fxg2 {[%emt 0:00:07]} 18. Ba3 {[%emt 0:00:02]} Re8 {[%emt 0:00:12]} 19. Ne4 {[%emt 0:00:09]} Nxe4 {[%emt 0:00:13]} 20. Rxe4 {[%emt 0:00:05]} Ng6 {[%emt 0:00:27]} 21. Qf3 {[%emt 0:00:10]} Qf6 {[%emt 0:00:18]} 22. Qxf6 {[%emt 0:00:13]} gxf6 {[%emt 0:00:01]} 23. Rae1 {[%emt 0:00:01]} Rxe4 {[%emt 0:00:13]} 24. Rxe4 {[%emt 0:00:01]} Rc8 {[%emt 0:00:03]} 25. c4 {[%emt 0:00:12]} Kg7 {[%emt 0:00:03]} 26. Kxg2 {[%emt 0:00:02]} Rd8 {[%emt 0:00:03]} 27. c5 {[%emt 0:00:02]} Bc7 {[%emt 0:00:01]} 28. Bc4 {[%emt 0:00:07]} Be5 {[%emt 0:00:02]} 29. c6 {[%emt 0:00:03]} bxc6 {[%emt 0:00:02]} 30. bxc6 {[%emt 0:00:01]} Nf4+ {[%emt 0:00:02]} 31. Kf3 {[%emt 0:00:03]} Rc8 {[%emt 0:00:02]} 32. Bb5 {[%emt 0:00:02]} Ne6 {[%emt 0:00:02]} 33. Rg4+ {[%emt 0:00:07]} Kh6 {[%emt 0:00:03]} 34. Kg2 {[%emt 0:00:03]} Nf4+ {[%emt 0:00:04]} 35. Kf3 {[%emt 0:00:02]} Ne6 {[%emt 0:00:02]} 36. Rc4 {[%emt 0:00:01]} Nd4+ {[%emt 0:00:05]} 37. Ke4 {[%emt 0:00:02]} Ne6 {[%emt 0:00:01]} 38. Bc1+ {[%emt 0:00:03]} Kg6 {[%emt 0:00:01]} 39. Bd2 {[%emt 0:00:01]} Bc7 {[%emt 0:00:03]} 40. Kf3 {[%emt 0:00:02]} Ng5+ {[%emt 0:00:01]} 41. Ke2 {[%emt 0:00:02]} Re8+ {[%emt 0:00:02]} 42. Be3 {[%emt 0:00:01]} Ne6 {[%emt 0:00:01]} 43. h4 {[%emt 0:00:00]} f5 {[%emt 0:00:01]} 44. Rc1 {[%emt 0:00:01]} f4 {[%emt 0:00:01]} 45. Ba7 {[%emt 0:00:02]} Nd4+ {[%emt 0:00:02]} 46. Kd3 {[%emt 0:00:00]} Ne6 {[%emt 0:00:03]} 47. Rg1+ {[%emt 0:00:01]} Kf5 {[%emt 0:00:01]} 48. Kc4 {[%emt 0:00:03]} Nd8 {[%emt 0:00:02]} 49. Bd4 {[%emt 0:00:02]} Re4 {[%emt 0:00:02]} 50. Rg5+ {[%emt 0:00:01]} Ke6 {[%emt 0:00:01]} 51. Kd3 {[%emt 0:00:16]} Re1 {[%emt 0:00:02]} 52. Bc4+ {[%emt 0:00:00]} Ke7 {[%emt 0:00:02]} 53. Bc5+ {[%emt 0:00:00]} Bd6 {[%emt 0:00:01]} 54. Bxd6+ {[%emt 0:00:00]} Kxd6 {[%emt 0:00:01]} 55. Rd5+ {[%emt 0:00:00]} Kc7 {[%emt 0:00:02]} 56. Rf5 {[%emt 0:00:00]} Kxc6 {[%emt 0:00:03]} 57. Rxf4 {[%emt 0:00:01]} Rd1+ {[%emt 0:00:01]} 58. Kc2 {[%emt 0:00:01]} Rd6 {[%emt 0:00:02]} 59. Bxf7 {[%emt 0:00:05]} Nxf7 {[%emt 0:00:08] Kd3} 1/2-1/2

[Event "EWIBCC 2019"]
[Site "Monte-Carlo"]
[Date "2019.11.29"]
[Round "11.13"]
[White "Muetsch, Annmarie"]
[Black "Berend, Elvira"]
[Result "0-1"]
[ECO "B81"]
[WhiteElo "2240"]
[BlackElo "2349"]
[Annotator "NA"]
[PlyCount "54"]
[EventDate "2019.11.29"]
[EventType "swiss"]
[EventCountry "MNC"]
[SourceTitle "playchess.com"]
[Source "ChessBase"]
[SourceQuality "1"]
[TimeControl "180+2"]

1. e4 {[%emt 0:00:00]} c5 {[%emt 0:00:01]} 2. Nf3 {[%emt 0:00:02]} e6 {[%emt 0:00:04]} 3. d4 {[%emt 0:00:02]} cxd4 {[%emt 0:00:01]} 4. Nxd4 {[%emt 0:00:01]} Nf6 {[%emt 0:00:01]} 5. Nc3 {[%emt 0:00:02]} d6 {[%emt 0:00:01]} 6. Be3 {[%emt 0:00:06]} Be7 {[%emt 0:00:04]} 7. g4 {[%emt 0:00:06]} a6 {[%emt 0:00:03]} 8. g5 {[%emt 0:00:04]} Nfd7 {[%emt 0:00:01]} 9. h4 {[%emt 0:00:01]} Nc6 {[%emt 0:00:06]} 10. Bg2 {[%emt 0:00:10]} Nde5 {[%emt 0:00:08]} 11. Qe2 {[%emt 0:00:31]} Bd7 {[%emt 0:00:59]} 12. f4 {[%emt 0:00:13]} Ng6 {[%emt 0:00:15]} 13. Nxc6 {[%emt 0:00:07]} Bxc6 {[%emt 0:00:01]} 14. h5 {[%emt 0:00:12]} Nf8 {[%emt 0:00:01]} 15. O-O-O {[%emt 0:00:17]} Qa5 {[%emt 0:00:03]} 16. Kb1 {[%emt 0:00:19]} Nd7 {[%emt 0:00:04]} 17. g6 {[%emt 0:00:08]} fxg6 {[%emt 0:00:11]} 18. hxg6 {[%emt 0:00:03]} h6 {[%emt 0:00:00]} 19. Qg4 {[%emt 0:00:07]} Nf8 {[%emt 0:00:08]} 20. f5 {[%emt 0:00:06]} Bf6 {[%emt 0:00:13]} 21. Bd4 {[%emt 0:00:07]} Bxd4 {[%emt 0:00:25]} 22. Rxd4 {[%emt 0:00:01]} Qe5 {[%emt 0:00:01]} 23. Rhd1 {[%emt 0:00:11]} O-O-O {[%emt 0:00:01]} 24. Bh3 {[%emt 0:00:09]} h5 {[%emt 0:00:08]} 25. Qg5 {[%emt 0:00:05]} Kc7 {[%emt 0:00:08]} 26. a4 {[%emt 0:00:17]} h4 {[%emt 0:00:07]} 27. b3 {[%emt 0:00:05]} Nd7 {[%emt 0:00:39]} 0-1

[Event "EWIBCC 2019"]
[Site "Monte-Carlo"]
[Date "2019.11.29"]
[Round "11.14"]
[White "Berzina, Ilze"]
[Black "Benmesbah, Natacha"]
[Result "0-1"]
[ECO "B31"]
[WhiteElo "2211"]
[BlackElo "2265"]
[Annotator "NA"]
[PlyCount "68"]
[EventDate "2019.11.29"]
[EventType "swiss"]
[EventCountry "MNC"]
[SourceTitle "playchess.com"]
[Source "ChessBase"]
[SourceQuality "1"]
[TimeControl "180+2"]

1. e4 {[%emt 0:00:00]} c5 {[%emt 0:00:00]} 2. Nf3 {[%emt 0:00:00]} Nc6 {[%emt 0:00:00]} 3. Bb5 {[%emt 0:00:01]} g6 {[%emt 0:00:01]} 4. O-O {[%emt 0:00:02]} Bg7 {[%emt 0:00:02]} 5. Re1 {[%emt 0:00:02]} Nf6 {[%emt 0:00:01]} 6. e5 {[%emt 0:00:01]} Nd5 {[%emt 0:00:01]} 7. Nc3 {[%emt 0:00:00]} Nc7 {[%emt 0:00:02]} 8. Bxc6 {[%emt 0:00:02]} dxc6 {[%emt 0:00:00]} 9. Ne4 {[%emt 0:00:01]} b6 {[%emt 0:00:01]} 10. Nf6+ {[%emt 0:00:02]} Kf8 {[%emt 0:00:01]} 11. Ne4 {[%emt 0:00:01]} Bg4 {[%emt 0:00:03]} 12. Ng3 {[%emt 0:00:04]} Ne6 {[%emt 0:00:38]} 13. h3 {[%emt 0:00:18]} Bxf3 {[%emt 0:00:05]} 14. Qxf3 {[%emt 0:00:01]} Qd5 {[%emt 0:00:01]} 15. Qxd5 {[%emt 0:00:41]} cxd5 {[%emt 0:00:02]} 16. c3 {[%emt 0:00:09]} c4 {[%emt 0:00:11]} 17. d4 {[%emt 0:00:18]} cxd3 {[%emt 0:00:02]} 18. b4 {[%emt 0:00:16]} Rc8 {[%emt 0:00:07]} 19. Bb2 {[%emt 0:00:10]} Nf4 {[%emt 0:01:14]} 20. Rad1 {[%emt 0:00:05]} e6 {[%emt 0:00:12]} 21. Bc1 {[%emt 0:00:06]} d2 {[%emt 0:00:14]} 22. Rxd2 {[%emt 0:00:45]} Rxc3 {[%emt 0:00:01]} 23. Bb2 {[%emt 0:00:07]} Rc4 {[%emt 0:00:04]} 24. Rc1 {[%emt 0:00:15]} Ke7 {[%emt 0:00:12]} 25. Rxc4 {[%emt 0:00:05]} dxc4 {[%emt 0:00:01]} 26. Ne4 {[%emt 0:00:07]} Nd3 {[%emt 0:00:05]} 27. Bc3 {[%emt 0:00:04]} Bxe5 {[%emt 0:00:04]} 28. Rxd3 {[%emt 0:00:02]} cxd3 {[%emt 0:00:02]} 29. Bxe5 {[%emt 0:00:02]} Rc8 {[%emt 0:00:01]} 30. Bf6+ {[%emt 0:00:05]} Kd7 {[%emt 0:00:00]} 31. Bc3 {[%emt 0:00:01]} f5 {[%emt 0:00:02]} 32. Nf6+ {[%emt 0:00:03]} Ke7 {[%emt 0:00:01]} 33. Be5 {[%emt 0:00:03]} Rc1+ {[%emt 0:00:01]} 34. Kh2 {[%emt 0:00:01]} d2 {[%emt 0:00:01]} 0-1

[Event "EWIBCC 2019"]
[Site "Monte-Carlo"]
[Date "2019.11.29"]
[Round "11.17"]
[White "Antova, Gabriela"]
[Black "Socko, Monika"]
[Result "1/2-1/2"]
[ECO "E11"]
[WhiteElo "2306"]
[BlackElo "2417"]
[Annotator "ChessBase"]
[PlyCount "81"]
[EventDate "2019.11.29"]
[EventType "swiss"]
[EventCountry "MNC"]
[SourceTitle "playchess.com"]
[Source "ChessBase"]
[SourceQuality "1"]
[TimeControl "180+2"]

1. d4 {[%emt 0:00:00]} Nf6 {[%emt 0:00:00]} 2. c4 {[%emt 0:00:00]} e6 {[%emt 0:00:00]} 3. Nf3 {[%emt 0:00:02]} Bb4+ {[%emt 0:00:01]} 4. Nbd2 {[%emt 0:00:02]} a5 {[%emt 0:00:01]} 5. a3 {[%emt 0:00:04]} Be7 {[%emt 0:00:01]} 6. e4 {[%emt 0:00:04]} d5 {[%emt 0:00:01]} 7. e5 {[%emt 0:00:09]} Ne4 {[%emt 0:00:01]} 8. Bd3 {[%emt 0:00:41]} Nxd2 {[%emt 0:00:02]} 9. Bxd2 {[%emt 0:00:03]} dxc4 {[%emt 0:00:11]} 10. Bxc4 {[%emt 0:02:15]} b6 {[%emt 0:00:01]} 11. O-O {[%emt 0:00:00]} Ba6 {[%emt 0:00:09]} 12. Rc1 {[%emt 0:00:00]} O-O {[%emt 0:00:08]} 13. Be3 {[%emt 0:00:00]} b5 {[%emt 0:00:26]} 14. Bd3 {[%emt 0:00:00]} b4 {[%emt 0:00:00]} 15. a4 {[%emt 0:00:00]} Bxd3 {[%emt 0:00:15]} 16. Qxd3 {[%emt 0:00:00]} c5 {[%emt 0:00:01]} 17. Rfd1 {[%emt 0:00:00]} cxd4 {[%emt 0:00:08]} 18. Nxd4 {[%emt 0:00:00]} Qd5 {[%emt 0:00:17]} 19. f4 {[%emt 0:00:00]} Rd8 {[%emt 0:00:16]} 20. Qb5 {[%emt 0:00:00]} Na6 {[%emt 0:00:17]} 21. Qxd5 {[%emt 0:00:00]} Rxd5 {[%emt 0:00:05]} 22. Nc6 {[%emt 0:00:00]} Bc5 {[%emt 0:00:10]} 23. Bxc5 {[%emt 0:00:00]} Rxc5 {[%emt 0:00:00]} 24. Rxc5 {[%emt 0:00:02]} Nxc5 {[%emt 0:00:01]} 25. Nxa5 {[%emt 0:00:03]} Nxa4 {[%emt 0:00:08]} 26. b3 {[%emt 0:00:12]} Nc5 {[%emt 0:00:06]} 27. Nc6 {[%emt 0:00:02]} g6 {[%emt 0:00:07]} 28. Nxb4 {[%emt 0:00:02]} Nxb3 {[%emt 0:00:01]} 29. Nc6 {[%emt 0:00:05]} Kg7 {[%emt 0:00:08]} 30. Rd7 {[%emt 0:00:04]} Nc5 {[%emt 0:00:04]} 31. Rc7 {[%emt 0:00:04]} h5 {[%emt 0:00:10]} 32. g3 {[%emt 0:00:01]} h4 {[%emt 0:00:01]} 33. Nd4 {[%emt 0:00:05]} Rd8 {[%emt 0:00:04]} 34. Rxc5 {[%emt 0:00:02]} Rxd4 {[%emt 0:00:01]} 35. Kg2 {[%emt 0:00:01]} g5 {[%emt 0:00:11]} 36. fxg5 {[%emt 0:00:05]} hxg3 {[%emt 0:00:00]} 37. Kxg3 {[%emt 0:00:01]} Kg6 {[%emt 0:00:04]} 38. h4 {[%emt 0:00:01]} Rd3+ {[%emt 0:00:01]} 39. Kg4 {[%emt 0:00:01]} Rd4+ {[%emt 0:00:00]} 40. Kg3 {[%emt 0:00:00]} Rd3+ {[%emt 0:00:01]} 41. Kg4 {[%emt 0:00:01]} 1/2-1/2

[Event "EWIBCC 2019"]
[Site "Monte-Carlo"]
[Date "2019.11.29"]
[Round "11.18"]
[White "Solozhenkina, Elizaveta"]
[Black "Daulyte-Cornette, Deimante"]
[Result "0-1"]
[ECO "B03"]
[WhiteElo "2314"]
[BlackElo "2405"]
[Annotator "NA"]
[PlyCount "57"]
[EventDate "2019.11.29"]
[EventType "swiss"]
[EventCountry "MNC"]
[SourceTitle "playchess.com"]
[Source "ChessBase"]
[SourceQuality "1"]
[TimeControl "180+2"]

1. e4 {[%emt 0:00:00]} Nf6 {[%emt 0:00:00]} 2. e5 {[%emt 0:00:00]} Nd5 {[%emt 0:00:00]} 3. d4 {[%emt 0:00:01]} d6 {[%emt 0:00:01]} 4. c4 {[%emt 0:00:00]} Nb6 {[%emt 0:00:01]} 5. exd6 cxd6 {[%emt 0:00:01]} 6. Nc3 {[%emt 0:00:02]} g6 {[%emt 0:00:02]} 7. Be3 {[%emt 0:00:02]} Bg7 {[%emt 0:00:01]} 8. Rc1 {[%emt 0:00:00]} O-O {[%emt 0:00:03]} 9. b3 {[%emt 0:00:01]} Bf5 {[%emt 0:00:04]} 10. Nf3 {[%emt 0:00:15]} d5 {[%emt 0:00:06]} 11. c5 {[%emt 0:00:12]} Nc8 {[%emt 0:00:02]} 12. h3 {[%emt 0:00:03]} Nc6 {[%emt 0:00:05]} 13. Be2 {[%emt 0:00:08]} Be4 {[%emt 0:00:07]} 14. O-O {[%emt 0:00:15]} Bxf3 {[%emt 0:00:02]} 15. Bxf3 {[%emt 0:00:01]} e6 {[%emt 0:00:01]} 16. Ne2 {[%emt 0:00:52]} N8e7 {[%emt 0:00:13]} 17. g4 {[%emt 0:00:02]} Qd7 {[%emt 0:00:14]} 18. Bg2 {[%emt 0:00:04]} f5 {[%emt 0:00:28]} 19. Qd2 {[%emt 0:00:06]} fxg4 {[%emt 0:00:44]} 20. hxg4 {[%emt 0:00:01]} e5 {[%emt 0:00:03]} 21. f3 {[%emt 0:00:24]} Rf7 {[%emt 0:00:41]} 22. dxe5 {[%emt 0:00:45]} Nxe5 {[%emt 0:00:06]} 23. Nd4 {[%emt 0:00:06]} N7c6 {[%emt 0:00:04]} 24. Rf2 {[%emt 0:00:20]} Raf8 {[%emt 0:00:02]} 25. Rcf1 {[%emt 0:00:00]} Qe7 {[%emt 0:00:11]} 26. Nxc6 {[%emt 0:00:05]} bxc6 {[%emt 0:00:01]} 27. Bd4 {[%emt 0:00:03]} Qh4 {[%emt 0:00:09]} 28. Be3 {[%emt 0:00:04]} Qg3 {[%emt 0:00:05]} 29. Qe1 {[%emt 0:00:06]} 0-1

[Event "EWIBCC 2019"]
[Site "Monte-Carlo"]
[Date "2019.11.29"]
[Round "11.19"]
[White "Rogule, Laura"]
[Black "Ovod, Evgenija"]
[Result "1-0"]
[ECO "A13"]
[WhiteElo "2293"]
[BlackElo "2347"]
[Annotator "NA"]
[PlyCount "133"]
[EventDate "2019.11.29"]
[EventType "swiss"]
[EventCountry "MNC"]
[SourceTitle "playchess.com"]
[Source "ChessBase"]
[SourceQuality "1"]
[TimeControl "180+2"]

1. c4 {[%emt 0:00:00]} e6 {[%emt 0:00:00]} 2. Nf3 {[%emt 0:00:01]} d5 {[%emt 0:00:00]} 3. e3 {[%emt 0:00:01]} Nf6 {[%emt 0:00:00]} 4. b3 {[%emt 0:00:03]} c5 {[%emt 0:00:04]} 5. Bb2 {[%emt 0:00:01]} Nc6 {[%emt 0:00:01]} 6. cxd5 {[%emt 0:00:07]} Nxd5 {[%emt 0:00:02]} 7. Be2 {[%emt 0:00:16]} f6 {[%emt 0:00:06]} 8. O-O {[%emt 0:00:16]} Be7 {[%emt 0:00:05]} 9. d4 {[%emt 0:00:10]} O-O {[%emt 0:00:07]} 10. dxc5 {[%emt 0:00:09]} Bxc5 {[%emt 0:00:02]} 11. Nc3 {[%emt 0:00:09]} Nxc3 {[%emt 0:00:07]} 12. Bxc3 {[%emt 0:00:02]} e5 {[%emt 0:00:08]} 13. Bc4+ {[%emt 0:00:07]} Kh8 {[%emt 0:00:00]} 14. h3 {[%emt 0:00:33]} Qe7 {[%emt 0:00:16]} 15. Rc1 {[%emt 0:00:14]} Bd7 {[%emt 0:00:11]} 16. Qe2 {[%emt 0:00:12]} Rad8 {[%emt 0:00:12]} 17. Rfd1 {[%emt 0:00:14]} a6 {[%emt 0:00:08]} 18. a4 {[%emt 0:00:02]} Ba3 {[%emt 0:00:09]} 19. Rc2 {[%emt 0:00:02]} Nb4 {[%emt 0:00:10]} 20. Rcd2 {[%emt 0:00:03]} Bc6 {[%emt 0:00:27]} 21. e4 {[%emt 0:00:31]} Rxd2 {[%emt 0:00:07]} 22. Bxd2 {[%emt 0:00:03]} Be8 {[%emt 0:00:16]} 23. Nh4 {[%emt 0:00:05]} Nc6 {[%emt 0:00:29]} 24. Be3 {[%emt 0:00:03]} Bf7 {[%emt 0:00:22]} 25. Nf5 {[%emt 0:00:06]} Qc7 {[%emt 0:00:03]} 26. Bxf7 {[%emt 0:00:04]} Qxf7 {[%emt 0:00:04]} 27. Qc2 {[%emt 0:00:03]} g6 {[%emt 0:00:05]} 28. Nd6 {[%emt 0:00:03]} Bxd6 {[%emt 0:00:02]} 29. Rxd6 {[%emt 0:00:01]} Rd8 {[%emt 0:00:04]} 30. Rxd8+ {[%emt 0:00:01]} Nxd8 {[%emt 0:00:00]} 31. Qc8 {[%emt 0:00:02]} Qg8 {[%emt 0:00:08]} 32. Bb6 {[%emt 0:00:08]} Ne6 {[%emt 0:00:02]} 33. Qxb7 {[%emt 0:00:01]} Nf4 {[%emt 0:00:01]} 34. Be3 {[%emt 0:00:03]} g5 {[%emt 0:00:03]} 35. Qxa6 {[%emt 0:00:03]} Kg7 {[%emt 0:00:02]} 36. Qb7+ {[%emt 0:00:01]} Kg6 {[%emt 0:00:02]} 37. Bxf4 {[%emt 0:00:02]} gxf4 {[%emt 0:00:01]} 38. a5 {[%emt 0:00:03]} f3 {[%emt 0:00:03]} 39. gxf3 {[%emt 0:00:02]} Kg5 {[%emt 0:00:03]} 40. a6 {[%emt 0:00:03]} Kf4+ {[%emt 0:00:02]} 41. Kf1 {[%emt 0:00:02]} Kxf3 {[%emt 0:00:02]} 42. Qb6 {[%emt 0:00:02]} Qg2+ {[%emt 0:00:02]} 43. Ke1 {[%emt 0:00:01]} Qg1+ {[%emt 0:00:02]} 44. Kd2 {[%emt 0:00:01]} Qb1 {[%emt 0:00:04]} 45. Qe3+ {[%emt 0:00:02]} Kg2 {[%emt 0:00:00]} 46. Qg3+ {[%emt 0:00:02]} Kh1 {[%emt 0:00:01]} 47. Qf3+ {[%emt 0:00:01]} Kh2 {[%emt 0:00:03]} 48. Qd3 {[%emt 0:00:07]} Qb2+ {[%emt 0:00:02]} 49. Ke3 {[%emt 0:00:03]} Qa3 {[%emt 0:00:02]} 50. b4 {[%emt 0:00:02]} Qxb4 {[%emt 0:00:01]} 51. Ke2 {[%emt 0:00:04]} Qa5 {[%emt 0:00:03]} 52. Qg3+ {[%emt 0:00:02]} Kh1 {[%emt 0:00:01]} 53. Qf3+ {[%emt 0:00:01]} Kh2 {[%emt 0:00:01]} 54. Qd3 {[%emt 0:00:01]} Qa2+ {[%emt 0:00:01]} 55. Kf3 {[%emt 0:00:02]} Kxh3 {[%emt 0:00:03]} 56. Qf1+ {[%emt 0:00:01]} Kh4 {[%emt 0:00:02]} 57. Qh1+ {[%emt 0:00:02]} Kg5 {[%emt 0:00:01]} 58. Qg2+ {[%emt 0:00:01]} Kh6 {[%emt 0:00:01]} 59. Qh3+ {[%emt 0:00:01]} Kg6 {[%emt 0:00:02]} 60. Qf5+ {[%emt 0:00:01]} Kg7 {[%emt 0:00:01]} 61. Qd7+ {[%emt 0:00:01]} Kg6 {[%emt 0:00:01]} 62. a7 {[%emt 0:00:01]} Qa3+ {[%emt 0:00:02]} 63. Kg2 {[%emt 0:00:01]} h5 {[%emt 0:00:01]} 64. Qe8+ {[%emt 0:00:01]} Kg5 {[%emt 0:00:01]} 65. a8=Q {[%emt 0:00:01]} Qd3 {[%emt 0:00:04]} 66. Qg8+ {[%emt 0:00:02]} Kf4 {[%emt 0:00:03]} 67. Qg3+ {[%emt 0:00:02]} 1-0

[Event "EWIBCC 2019"]
[Site "Monte-Carlo"]
[Date "2019.11.29"]
[Round "11.20"]
[White "Worek, Joanna"]
[Black "Nicoara, Malina"]
[Result "1-0"]
[ECO "B04"]
[WhiteElo "2316"]
[BlackElo "2066"]
[Annotator "NA"]
[PlyCount "47"]
[EventDate "2019.11.29"]
[EventType "swiss"]
[EventCountry "MNC"]
[SourceTitle "playchess.com"]
[Source "ChessBase"]
[SourceQuality "1"]
[TimeControl "180+2"]

1. e4 {[%emt 0:00:00]} Nf6 {[%emt 0:00:00]} 2. e5 {[%emt 0:00:02]} Nd5 {[%emt 0:00:00]} 3. d4 {[%emt 0:00:02]} d6 {[%emt 0:00:00]} 4. Nf3 {[%emt 0:00:02]} Nb6 {[%emt 0:00:02]} 5. Bd3 {[%emt 0:00:30]} g6 {[%emt 0:00:01]} 6. O-O {[%emt 0:00:03]} Bg7 {[%emt 0:00:01]} 7. Re1 {[%emt 0:00:07]} Bg4 {[%emt 0:00:01]} 8. h3 {[%emt 0:00:03]} Bxf3 {[%emt 0:00:03]} 9. Qxf3 {[%emt 0:00:02]} d5 {[%emt 0:00:06]} 10. b3 {[%emt 0:00:16]} O-O {[%emt 0:00:06]} 11. a4 {[%emt 0:00:01]} a5 {[%emt 0:00:02]} 12. Ba3 {[%emt 0:00:04]} Na6 {[%emt 0:00:20]} 13. c3 {[%emt 0:00:19]} c6 {[%emt 0:00:02]} 14. Nd2 {[%emt 0:00:02]} Nc7 {[%emt 0:00:05]} 15. Qe3 {[%emt 0:00:07]} Re8 {[%emt 0:00:55]} 16. Nf3 {[%emt 0:00:04]} Ne6 {[%emt 0:00:06]} 17. Nh2 {[%emt 0:00:04]} h6 {[%emt 0:01:00]} 18. f4 {[%emt 0:00:01]} Nf8 {[%emt 0:00:07]} 19. f5 {[%emt 0:00:02]} Qc7 {[%emt 0:00:25]} 20. fxg6 {[%emt 0:00:10]} fxg6 {[%emt 0:00:01]} 21. Rf1 {[%emt 0:00:09]} Ne6 {[%emt 0:00:06]} 22. Bxg6 {[%emt 0:00:02]} Rf8 {[%emt 0:00:03]} 23. Ng4 {[%emt 0:00:03]} Ng5 {[%emt 0:00:06]} 24. h4 {[%emt 0:00:09]} 1-0